[Event "Skol-SM i Schack 2024, Grupp A"]
[Site "Arena Varberg, Kattegattsvagen 26, Varberg, Sweden"]
[Date "2024.10.12"]
[Round "4.6"]
[White "Eriksson, Wilmer"]
[Black "Walter, Fridolf"]
[Result "1-0"]
[TimeControl "45 minutes + 10 seconds per move from move one."]
[WhiteFideId "1768298"]
[BlackFideId "1753347"]
[WhiteElo "1849"]
[BlackElo "1708"]

1. e4 {[%clk 00:45:18]} {[%emt 00:00:02]} e5 {[%clk 00:45:07]} {[%emt
00:00:12]} 2. Nf3 {[%clk 00:45:21]} {[%emt 00:00:06]} Nc6 {[%clk 00:45:12]}
{[%emt 00:00:06]} 3. Bb5 {[%clk 00:45:29]} {[%emt 00:00:02]} f5 {[%clk
00:44:36]} {[%emt 00:00:46]} 4. d3 {[%clk 00:45:33]} {[%emt 00:00:06]} fxe4
{[%clk 00:42:38]} {[%emt 00:02:09]} 5. dxe4 {[%clk 00:45:41]} {[%emt 00:00:02]}
Qf6 {[%clk 00:40:49]} {[%emt 00:01:58]} 6. O-O {[%clk 00:41:33]} {[%emt
00:04:18]} d6 {[%clk 00:39:00]} {[%emt 00:01:58]} 7. Nc3 {[%clk 00:41:18]}
{[%emt 00:00:26]} Bg4 {[%clk 00:34:47]} {[%emt 00:04:23]} 8. Nd5 {[%clk
00:39:41]} {[%emt 00:01:47]} Qd8 {[%clk 00:33:22]} {[%emt 00:01:35]} 9. h3
{[%clk 00:30:28]} {[%emt 00:09:24]} Bh5 {[%clk 00:32:19]} {[%emt 00:01:12]} 10.
g4 {[%clk 00:27:08]} {[%emt 00:03:30]} Bf7 {[%clk 00:27:16]} {[%emt 00:05:13]}
11. Ng5 {[%clk 00:18:24]} {[%emt 00:08:54]} Nh6 {[%clk 00:21:12]} {[%emt
00:06:13]} 12. f4 {[%clk 00:15:09]} {[%emt 00:03:26]} exf4 {[%clk 00:15:03]}
{[%emt 00:06:19]} 13. Rxf4 {[%clk 00:13:05]} {[%emt 00:02:14]} Bg8 {[%clk
00:11:49]} {[%emt 00:03:24]} 14. Qf3 {[%clk 00:09:40]} {[%emt 00:03:36]} Be7
{[%clk 00:11:07]} {[%emt 00:00:51]} 15. Qc3 {[%clk 00:04:51]} {[%emt 00:05:00]}
Bxd5 {[%clk 00:08:18]} {[%emt 00:02:59]} 16. exd5 {[%clk 00:04:21]} {[%emt
00:00:40]} Bxg5 {[%clk 00:05:41]} {[%emt 00:02:45]} 17. Bxc6+ {[%clk 00:03:13]}
{[%emt 00:01:19]} bxc6 {[%clk 00:04:36]} {[%emt 00:01:16]} 18. Qxc6+ {[%clk
00:03:20]} {[%emt 00:00:03]} Ke7 {[%clk 00:04:06]} {[%emt 00:00:38]} 19. Re4+
{[%clk 00:03:08]} {[%emt 00:00:23]} Kf7 {[%clk 00:02:50]} {[%emt 00:01:26]} 20.
Bxg5 {[%clk 00:03:01]} {[%emt 00:00:17]} Qxg5 {[%clk 00:02:50]} {[%emt
00:00:09]} 21. Rf1+ {[%clk 00:02:54]} {[%emt 00:00:17]} Qf6 {[%clk 00:02:10]}
{[%emt 00:00:50]} 22. Qd7+ {[%clk 00:02:03]} {[%emt 00:01:02]} Kg6 {[%clk
00:01:42]} {[%emt 00:00:38]} 23. Rxf6+ {[%clk 00:02:05]} gxf6 {[%clk 00:01:41]}
{[%emt 00:00:19]} 24. Re7 {[%clk 00:01:51]} {[%emt 00:00:23]} Kg5 {[%clk
00:01:16]} {[%emt 00:00:36]} 25. Rxh7 {[%clk 00:01:16]} {[%emt 00:00:46]} Rxh7
{[%clk 00:00:31]} {[%emt 00:00:54]} 26. Qxh7 {[%clk 00:01:23]} {[%emt
00:00:03]} Ng8 {[%clk 00:00:33]} {[%emt 00:00:07]} 27. Kg2 {[%clk 00:00:32]}
{[%emt 00:01:01]} Kf4 {[%clk 00:00:22]} {[%emt 00:00:22]} 28. Kf2 {[%clk
00:00:34]} {[%emt 00:00:08]} Ke5 {[%clk 00:00:21]} {[%emt 00:00:11]} 29. Qf5+
{[%clk 00:00:42]} {[%emt 00:00:02]} Kd4 {[%clk 00:00:30]} {[%emt 00:00:02]} 30.
c3+ {[%clk 00:00:47]} {[%emt 00:00:04]} Kc5 {[%clk 00:00:37]} {[%emt 00:00:03]}
31. b4+ {[%clk 00:00:30]} {[%emt 00:00:28]} Kb5 {[%clk 00:00:31]} {[%emt
00:00:15]} 32. Qd3+ {[%clk 00:00:35]} {[%emt 00:00:04]} Kb6 {[%clk 00:00:34]}
{[%emt 00:00:08]} 33. Qc4 {[%clk 00:00:19]} {[%emt 00:00:27]} Ne7 {[%clk
00:00:32]} {[%emt 00:00:12]} 34. a4 {[%clk 00:00:26]} {[%emt 00:00:02]} a6
{[%clk 00:00:35]} {[%emt 00:00:07]} 35. Qd4+ {[%clk 00:00:21]} {[%emt
00:00:15]} Kb7 {[%clk 00:00:33]} {[%emt 00:00:12]} 36. c4 {[%clk 00:00:20]}
{[%emt 00:00:11]} Ng6 {[%clk 00:00:26]} {[%emt 00:00:17]} 37. c5 {[%clk
00:00:21]} {[%emt 00:00:10]} Ne5 {[%clk 00:00:24]} {[%emt 00:00:11]} 38. c6+
{[%clk 00:00:25]} {[%emt 00:00:07]} Kb8 {[%clk 00:00:21]} {[%emt 00:00:12]} 39.
Kg3 {[%clk 00:00:25]} {[%emt 00:00:09]} a5 {[%clk 00:00:28]} {[%emt 00:00:04]}
40. b5 {[%clk 00:00:26]} {[%emt 00:00:09]} Kc8 {[%clk 00:00:34]} {[%emt
00:00:04]} 41. b6 {[%clk 00:00:27]} {[%emt 00:00:09]} cxb6 {[%clk 00:00:36]}
{[%emt 00:00:08]} 42. Qxb6 {[%clk 00:00:35]} {[%emt 00:00:03]} Rb8 {[%clk
00:00:40]} {[%emt 00:00:05]} 43. Qa6+ {[%clk 00:00:30]} {[%emt 00:00:15]} Kd8
{[%clk 00:00:40]} {[%emt 00:00:10]} 44. Qxa5+ {[%clk 00:00:39]} {[%emt
00:00:01]} Ke8 {[%clk 00:00:38]} {[%emt 00:00:13]} 45. c7 {[%clk 00:00:35]}
{[%emt 00:00:13]} Rb3+ {[%clk 00:00:43]} {[%emt 00:00:04]} 46. Kg2 {[%clk
00:00:18]} {[%emt 00:00:27]} Rb2+ {[%clk 00:00:49]} {[%emt 00:00:04]} 47. Kg3
{[%clk 00:00:24]} {[%emt 00:00:04]} Rb3+ {[%clk 00:00:56]} {[%emt 00:00:03]} 48.
Kf4 {[%clk 00:00:22]} {[%emt 00:00:12]} Kd7 {[%clk 00:00:37]} {[%emt 00:00:29]}
49. Qa7 {[%clk 00:00:20]} {[%emt 00:00:12]} Rc3 {[%clk 00:00:31]} {[%emt
00:00:17]} 50. c8=Q+ {[%emt 00:00:13]} Kxc8 {[%clk 00:00:32]} {[%emt 00:00:08]}
51. Qh7 {[%clk 00:00:14]} {[%emt 00:00:13]} Rc4+ {[%clk 00:00:32]} {[%emt
00:00:10]} 52. Kf5 {[%clk 00:00:18]} {[%emt 00:00:06]} Nd7 {[%clk 00:00:14]}
{[%emt 00:00:28]} 53. Qe7 {[%clk 00:00:14]} {[%emt 00:00:14]} Kc7 {[%clk
00:00:14]} {[%emt 00:00:09]} 54. h4 {[%clk 00:00:22]} {[%emt 00:00:04]} Rxa4
{[%clk 00:00:14]} {[%emt 00:00:09]} 55. h5 {[%clk 00:00:30]} {[%emt 00:00:02]}
Ra2 {[%clk 00:00:12]} {[%emt 00:00:12]} 56. h6 {[%clk 00:00:36]} {[%emt
00:00:05]} Rh2 {[%clk 00:00:16]} {[%emt 00:00:05]} 57. h7 {[%clk 00:00:42]}
{[%emt 00:00:04]} Rh1 {[%clk 00:00:16]} {[%emt 00:00:09]} 58. Ke6 {[%clk
00:00:24]} {[%emt 00:00:30]} Re1+ {[%clk 00:00:13]} {[%emt 00:00:13]} 59. Kf7
{[%clk 00:00:33]} {[%emt 00:00:01]} Rxe7 {[%clk 00:00:11]} {[%emt 00:00:12]} 60.
Kxe7 {[%clk 00:00:41]} {[%emt 00:00:01]} Nb6 {[%clk 00:00:17]} {[%emt
00:00:04]} 61. h8=Q {[%clk 00:00:48]} {[%emt 00:00:04]} Nxd5 {[%clk 00:00:25]}
{[%emt 00:00:02]} 62. Ke6 {[%clk 00:00:52]} {[%emt 00:00:05]} Kc6 {[%clk
00:00:30]} {[%emt 00:00:05]} 63. Qe8+ {[%clk 00:00:53]} {[%emt 00:00:08]} Kc5
{[%clk 00:00:36]} {[%emt 00:00:05]} 64. Qc8+ {[%clk 00:00:59]} {[%emt
00:00:04]} Kd4 {[%clk 00:00:44]} {[%emt 00:00:02]} 65. Kxd6 {[%clk 00:01:03]}
{[%emt 00:00:07]} Ne3 {[%clk 00:00:41]} {[%emt 00:00:13]} 66. Qg8 {[%clk
00:00:46]} {[%emt 00:00:26]} Ke4 {[%clk 00:00:44]} {[%emt 00:00:07]} 67. Qe6+
{[%clk 00:00:42]} {[%emt 00:00:14]} Kf4 {[%clk 00:00:45]} {[%emt 00:00:09]} 68.
Qxf6+ {[%clk 00:00:48]} {[%emt 00:00:04]} Kxg4 {[%clk 00:00:47]} {[%emt
00:00:08]} 69. Ke5 {[%clk 00:00:41]} {[%emt 00:00:17]} Ng2 {[%clk 00:00:48]}
{[%emt 00:00:10]} 70. Ke4 {[%clk 00:00:41]} {[%emt 00:00:09]} Nh4 {[%clk
00:00:48]} {[%emt 00:00:10]} 71. Qg7 {[%clk 00:00:44]} {[%emt 00:00:06]} Kh3
{[%clk 00:00:50]} {[%emt 00:00:09]} 72. Kf4 {[%clk 00:00:42]} {[%emt 00:00:12]}
Ng2+ {[%clk 00:00:53]} {[%emt 00:00:07]} 73. Kf3 {[%clk 00:00:49]} {[%emt
00:00:03]} Nh4+ {[%clk 00:01:00]} {[%emt 00:00:03]} 74. Kf2 {[%clk 00:00:54]}
{[%emt 00:00:04]} Nf5 {[%clk 00:00:54]} {[%emt 00:00:17]} 75. Qg5 {[%clk
00:00:43]} {[%emt 00:00:15]} 1-0

[Event "Skol-SM i Schack 2024, Grupp A"]
[Site "Arena Varberg, Kattegattsvagen 26, Varberg, Sweden"]
[Date "2024.10.12"]
[Round "5.10"]
[White "Fredlund, Joel"]
[Black "Al-Sherufi, Haider"]
[Result "0-1"]
[TimeControl "45 minutes + 10 seconds per move from move one."]
[WhiteFideId "1748157"]
[BlackFideId "1745212"]
[WhiteElo "1454"]
[BlackElo "1599"]

1. e4 {[%clk 00:45:18]} {[%emt 00:00:01]} e6 {[%clk 00:45:17]} {[%emt
00:00:02]} 2. d4 {[%clk 00:45:16]} {[%emt 00:00:13]} d5 {[%clk 00:45:25]}
{[%emt 00:00:02]} 3. exd5 {[%clk 00:45:10]} {[%emt 00:00:16]} exd5 {[%clk
00:45:33]} {[%emt 00:00:02]} 4. Nf3 {[%clk 00:45:04]} {[%emt 00:00:16]} Nf6
{[%clk 00:45:40]} {[%emt 00:00:04]} 5. Bg5 {[%clk 00:44:56]} {[%emt 00:00:18]}
Bf5 {[%clk 00:45:43]} {[%emt 00:00:06]} 6. Bd3 {[%clk 00:44:21]} {[%emt
00:00:45]} Bxd3 {[%clk 00:45:46]} {[%emt 00:00:07]} 7. Qxd3 {[%clk 00:44:13]}
{[%emt 00:00:18]} Nbd7 {[%clk 00:45:51]} {[%emt 00:00:05]} 8. O-O {[%clk
00:44:02]} {[%emt 00:00:22]} Be7 {[%clk 00:45:57]} {[%emt 00:00:03]} 9. Nc3
{[%clk 00:43:18]} {[%emt 00:00:54]} c6 {[%clk 00:45:47]} {[%emt 00:00:19]} 10.
a3 {[%clk 00:42:03]} {[%emt 00:01:26]} Qc7 {[%clk 00:45:48]} {[%emt 00:00:09]}
11. Rfe1 {[%clk 00:41:47]} {[%emt 00:00:25]} Nb6 {[%clk 00:43:38]} {[%emt
00:02:21]} 12. Re2 {[%clk 00:36:17]} {[%emt 00:05:40]} O-O-O {[%clk 00:43:00]}
{[%emt 00:00:48]} 13. Ne5 {[%clk 00:35:13]} {[%emt 00:01:15]} Rhf8 {[%clk
00:33:38]} {[%emt 00:09:32]} 14. Qf5+ {[%clk 00:30:13]} {[%emt 00:05:09]} Kb8
{[%clk 00:32:43]} {[%emt 00:01:05]} 15. Bf4 {[%clk 00:26:27]} {[%emt 00:03:56]}
Bd6 {[%clk 00:32:08]} {[%emt 00:00:45]} 16. Nd3 {[%clk 00:23:55]} {[%emt
00:02:42]} Bxf4 {[%clk 00:31:34]} {[%emt 00:00:45]} 17. Qxf4 {[%clk 00:23:11]}
{[%emt 00:00:54]} Qxf4 {[%clk 00:31:38]} {[%emt 00:00:05]} 18. Nxf4 {[%clk
00:23:16]} {[%emt 00:00:05]} Rfe8 {[%clk 00:31:14]} {[%emt 00:00:35]} 19. Rae1
{[%clk 00:22:49]} {[%emt 00:00:37]} Nc4 {[%clk 00:30:54]} {[%emt 00:00:29]} 20.
Nd1 {[%clk 00:20:49]} {[%emt 00:02:11]} Rxe2 {[%clk 00:30:37]} {[%emt
00:00:26]} 21. Rxe2 {[%clk 00:20:54]} {[%emt 00:00:05]} Re8 {[%clk 00:30:42]}
{[%emt 00:00:04]} 22. Rxe8+ {[%clk 00:20:36]} {[%emt 00:00:29]} Nxe8 {[%clk
00:30:50]} {[%emt 00:00:02]} 23. Kf1 {[%clk 00:19:45]} {[%emt 00:01:00]} a5
{[%clk 00:30:41]} {[%emt 00:00:19]} 24. Ke2 {[%clk 00:19:33]} {[%emt 00:00:23]}
b5 {[%clk 00:30:42]} {[%emt 00:00:08]} 25. Nd3 {[%clk 00:19:15]} {[%emt
00:00:30]} Kc7 {[%clk 00:30:16]} {[%emt 00:00:36]} 26. Ne3 {[%clk 00:18:40]}
{[%emt 00:00:44]} Ned6 {[%clk 00:30:17]} {[%emt 00:00:09]} 27. g4 {[%clk
00:17:57]} {[%emt 00:00:54]} f5 {[%clk 00:28:49]} {[%emt 00:01:37]} 28. Nxf5
{[%clk 00:15:37]} {[%emt 00:02:31]} Nxf5 {[%clk 00:28:37]} {[%emt 00:00:21]} 29.
gxf5 {[%clk 00:15:46]} {[%emt 00:00:01]} Nd6 {[%clk 00:28:33]} {[%emt
00:00:14]} 30. b3 {[%clk 00:14:49]} {[%emt 00:01:07]} Nxf5 {[%clk 00:28:05]}
{[%emt 00:00:38]} 31. c3 {[%clk 00:14:38]} {[%emt 00:00:20]} Kd6 {[%clk
00:27:57]} {[%emt 00:00:19]} 32. b4 {[%clk 00:13:54]} {[%emt 00:00:55]} axb4
{[%clk 00:27:40]} {[%emt 00:00:26]} 33. axb4 {[%clk 00:14:02]} {[%emt
00:00:02]} Ne7 {[%clk 00:26:13]} {[%emt 00:01:37]} 34. f4 {[%clk 00:13:23]}
{[%emt 00:00:48]} Ke6 {[%clk 00:26:20]} {[%emt 00:00:04]} 35. Kf3 {[%clk
00:13:16]} {[%emt 00:00:17]} Kf5 {[%clk 00:26:27]} {[%emt 00:00:03]} 36. h3
{[%clk 00:12:43]} {[%emt 00:00:43]} h6 {[%clk 00:25:08]} {[%emt 00:01:30]} 37.
Ke3 {[%clk 00:11:20]} {[%emt 00:01:32]} g5 {[%clk 00:24:21]} {[%emt 00:00:57]}
38. Kf3 {[%clk 00:10:23]} {[%emt 00:01:07]} Ng6 {[%clk 00:23:03]} {[%emt
00:01:27]} 39. fxg5 {[%clk 00:10:12]} {[%emt 00:00:22]} hxg5 {[%clk 00:23:09]}
{[%emt 00:00:04]} 40. Nf2 {[%clk 00:09:56]} {[%emt 00:00:26]} Nf4 {[%clk
00:22:17]} {[%emt 00:01:02]} 41. Ke3 {[%clk 00:09:19]} {[%emt 00:00:47]} Ke6
{[%clk 00:22:00]} {[%emt 00:00:28]} 42. Kf3 {[%clk 00:08:57]} {[%emt 00:00:31]}
Kf6 {[%clk 00:21:42]} {[%emt 00:00:28]} 43. Kg4 {[%clk 00:08:29]} {[%emt
00:00:38]} Ne2 {[%clk 00:20:25]} {[%emt 00:01:28]} 44. Nd1 {[%clk 00:08:36]}
{[%emt 00:00:02]} Ng1 {[%clk 00:17:54]} {[%emt 00:02:41]} 45. Ne3 {[%clk
00:08:27]} {[%emt 00:00:20]} Kg6 {[%clk 00:18:01]} {[%emt 00:00:02]} 46. Nd1
{[%clk 00:08:02]} {[%emt 00:00:34]} Ne2 {[%clk 00:18:08]} {[%emt 00:00:03]} 47.
Kf3 {[%clk 00:08:04]} {[%emt 00:00:09]} Nc1 {[%clk 00:18:13]} {[%emt 00:00:04]}
48. Kg4 {[%clk 00:08:02]} {[%emt 00:00:14]} Na2 {[%clk 00:18:21]} 49. Kf3
{[%clk 00:07:40]} {[%emt 00:00:32]} Kh5 {[%clk 00:18:10]} {[%emt 00:00:21]} 50.
Kg3 {[%clk 00:07:28]} {[%emt 00:00:22]} Nc1 {[%clk 00:18:15]} {[%emt 00:00:05]}
51. Kh2 {[%clk 00:07:03]} {[%emt 00:00:35]} Ne2 {[%clk 00:18:08]} {[%emt
00:00:17]} 52. Kg2 {[%clk 00:06:54]} {[%emt 00:00:19]} Kh4 {[%clk 00:18:15]}
{[%emt 00:00:02]} 53. Kh2 {[%clk 00:06:58]} {[%emt 00:00:07]} Nf4 {[%clk
00:18:12]} {[%emt 00:00:13]} 54. Nf2 {[%clk 00:06:56]} {[%emt 00:00:13]} Ne2
{[%clk 00:17:46]} {[%emt 00:00:35]} 55. Nd1 {[%clk 00:07:03]} {[%emt 00:00:03]}
Kh5 {[%clk 00:17:47]} {[%emt 00:00:09]} 56. Kg2 {[%clk 00:07:02]} {[%emt
00:00:11]} g4 {[%clk 00:17:14]} {[%emt 00:00:43]} 57. hxg4+ Kxg4 {[%clk
00:17:23]} 58. Kf2 {[%clk 00:06:55]} {[%emt 00:00:16]} Ng3 {[%clk 00:16:35]}
{[%emt 00:00:58]} 59. Ke3 {[%clk 00:06:16]} {[%emt 00:00:49]} Ne4 {[%clk
00:16:26]} {[%emt 00:00:19]} 60. Nf2+ {[%clk 00:05:02]} {[%emt 00:01:24]} Kf5
{[%clk 00:16:33]} {[%emt 00:00:03]} 61. Nd1 {[%clk 00:05:01]} {[%emt 00:00:11]}
Kg5 {[%clk 00:15:53]} {[%emt 00:00:50]} 62. Kf3 {[%clk 00:04:41]} {[%emt
00:00:29]} Kh4 {[%clk 00:16:02]} {[%emt 00:00:02]} 63. Kf4 {[%clk 00:04:40]}
{[%emt 00:00:12]} Kh3 {[%clk 00:15:59]} {[%emt 00:00:13]} 64. Ke5 {[%clk
00:04:10]} {[%emt 00:00:39]} Kg3 {[%clk 00:16:04]} {[%emt 00:00:05]} 65. Ke6
{[%clk 00:04:05]} {[%emt 00:00:15]} Kf3 {[%clk 00:16:07]} {[%emt 00:00:07]} 66.
Kd7 {[%clk 00:04:12]} {[%emt 00:00:02]} Ke2 {[%clk 00:16:16]} 67. Kxc6 {[%clk
00:03:55]} {[%emt 00:00:28]} Kxd1 {[%clk 00:16:22]} {[%emt 00:00:05]} 68. Kxd5
{[%clk 00:03:58]} {[%emt 00:00:07]} Nxc3+ {[%clk 00:16:30]} 69. Kc5 {[%clk
00:04:07]} {[%emt 00:00:02]} Kc2 {[%clk 00:16:17]} {[%emt 00:00:23]} 70. d5
{[%clk 00:04:15]} {[%emt 00:00:02]} Nxd5 {[%clk 00:16:19]} {[%emt 00:00:07]} 71.
Kxd5 {[%clk 00:04:23]} {[%emt 00:00:03]} Kb3 {[%clk 00:16:28]} {[%emt
00:00:01]} 72. Kc5 {[%clk 00:04:30]} {[%emt 00:00:02]} Ka4 {[%clk 00:16:36]}
{[%emt 00:00:01]} 73. Kd5 {[%clk 00:03:52]} {[%emt 00:00:49]} Kxb4 {[%clk
00:16:45]} {[%emt 00:00:02]} 74. Kd4 {[%clk 00:04:00]} Kb3 {[%clk 00:16:53]}
{[%emt 00:00:02]} 75. Kd3 {[%clk 00:04:09]} {[%emt 00:00:01]} b4 {[%clk
00:17:00]} {[%emt 00:00:03]} 76. Kd2 {[%clk 00:04:17]} {[%emt 00:00:02]} Kb2
{[%clk 00:17:04]} {[%emt 00:00:06]} 77. Kd3 {[%clk 00:04:24]} {[%emt 00:00:02]}
b3 {[%clk 00:17:14]} 78. Kd2 {[%clk 00:04:34]} {[%emt 00:00:02]} Ka2 {[%clk
00:17:23]} 79. Kc1 {[%clk 00:04:42]} {[%emt 00:00:01]} b2+ {[%clk 00:17:32]}
{[%emt 00:00:01]} 80. Kc2 {[%emt 00:00:02]} b1=Q {[%emt 00:00:02]} 0-1